bitfinex/quotes_SOLUSD_20250514
["timestamp","ask_amount","ask_price","bid_price","bid_amount"]
[1747214542199,20.60537002,178.32,178.27,20.60537002]
[1747214542394,42.05214465,178.35,178.26,20.60537002]
[1747214542590,20.60537002,178.3,178.24,1.6364]
[1747214542798,20.60537002,178.28,178.23,20.60537002]
[1747214543124,44.50537002,178.29,178.24,20.60537002]
[1747214543312,44.50537002,178.29,178.25,20.60537002]
[1747214543313,23.9,178.29,178.25,20.60537002]
[1747214543515,23.9,178.29,178.21,26.0]
[1747214543702,20.60537002,178.28,178.23,20.60537002]
[1747214544198,23.9,178.29,178.26,20.60537002]
[1747214544407,23.9,178.29,178.28,20.60537002]
[1747214544607,23.9,178.35,178.28,44.86417301]
[1747214544826,23.9,178.35,178.33,20.60537002]
[1747214545007,29.50704147,178.35,178.3,26.0]
[1747214545200,29.50704147,178.35,178.31,20.60537002]
[1747214545531,29.50704147,178.35,178.32,20.60537002]
[1747214546596,29.50704147,178.35,178.31,20.60537002]
[1747214546810,20.60537002,178.34,178.3,20.60537002]
[1747214547003,64.12979304,178.35,178.3,20.60537002]
[1747214547604,20.60537002,178.34,178.3,20.60537002]
[1747214547804,64.12979304,178.35,178.3,20.60537002]
[1747214548007,64.12979304,178.35,178.26,26.0]
[1747214548008,40.23190509,178.33,178.26,26.0]
[1747214548214,40.23190509,178.33,178.28,20.60537002]
[1747214548528,20.60537002,178.31,178.23,26.0]
[1747214548729,20.60537002,178.3,178.25,20.60537002]
[1747214548900,19.62653507,178.33,178.26,20.60537002]
[1747214549104,20.60537002,178.31,178.26,20.60537002]
[1747214549302,5.60758145,178.33,178.29,20.60537002]
[1747214550120,5.60758145,178.33,178.3,20.60537002]
[1747214550328,5.60758145,178.33,178.31,20.60537002]
[1747214551033,223.83458481,178.39,178.29,1.5755]
[1747214551202,223.83458481,178.39,178.36,20.60537002]
[1747214551203,29.50600964,178.38,178.36,20.60537002]
[1747214551706,29.50600964,178.38,178.37,20.60537002]
[1747214551707,23.9,178.38,178.37,20.60537002]
[1747214552130,29.50600964,178.38,178.37,20.60537002]
[1747214552306,23.9,178.38,178.37,20.60537002]
[1747214552616,29.50600964,178.38,178.37,20.60537002]
[1747214552827,23.9,178.38,178.37,20.60537002]
[1747214553005,23.9,178.38,178.36,26.0]
[1747214553214,23.9,178.38,178.37,20.60537002]
[1747214555522,23.9,178.38,178.37,26.21169395]
[1747214555726,5.60412463,178.44,178.37,26.21169369]
[1747214555918,5.60412463,178.44,178.41,20.60537002]
[1747214556325,29.50381073,178.45,178.42,20.60537002]
[1747214556531,23.9,178.45,178.44,20.60537002]
[1747214557937,5.60279817,178.49,178.44,46.60537002]
[1747214558143,20.60537002,178.48,178.43,20.60537002]
[1747214558845,19.61113911,178.47,178.43,20.60537002]
[1747214559340,19.61113911,178.47,178.43,13.92972697]
[1747214559540,33.54086608,178.47,178.39,6.0258]
[1747214559754,13.92972697,178.42,178.38,1.5281]
[1747214559935,13.92972697,178.42,178.37,13.92972697]
[1747214560262,23.9,178.43,178.38,13.92972697]
[1747214560421,23.9,178.43,178.4,13.92972697]
[1747214560622,23.9,178.43,178.39,13.92972697]
[1747214560839,5.60475283,178.42,178.39,13.92972697]
[1747214561844,5.60475283,178.42,178.37,26.0]
[1747214562147,5.60475283,178.42,178.38,13.92972697]
[1747214562617,5.60475283,178.42,178.39,13.92972697]
[1747214563017,13.92972697,178.4,178.37,26.0]
[1747214563640,13.92972697,178.41,178.37,26.0]
[1747214564224,5.60538116,178.4,178.37,26.0]
[1747214565237,19.53510813,178.4,178.34,7.6234]
[1747214565542,19.53510813,178.4,178.34,47.55312697]
[1747214565728,19.53510813,178.4,178.35,13.92972697]
[1747214566534,19.53510813,178.4,178.35,39.92972697]
[1747214567956,19.53510813,178.4,178.34,13.92972697]
[1747214567957,13.92972697,178.39,178.34,13.92972697]
[1747214568454,19.61883407,178.4,178.34,13.92972697]
[1747214568636,13.92972697,178.39,178.34,13.92972697]
[1747214569654,5.60538116,178.4,178.35,13.92972697]
[1747214569820,19.53510813,178.4,178.35,13.92972697]
[1747214570021,5.60538116,178.4,178.35,13.92972697]
[1747214570444,5.60538116,178.4,178.37,13.92972697]
[1747214571346,5.60475283,178.42,178.37,13.92972697]
[1747214571531,19.5344798,178.42,178.33,50.54154546]
[1747214571856,19.5344798,178.42,178.37,13.92972697]
[1747214572551,13.92972697,178.4,178.33,44.933972]
[1747214572731,19.6166349,178.42,178.35,13.92972697]
[1747214572933,13.92972697,178.41,178.35,13.92972697]
[1747214573144,13.92972697,178.4,178.35,13.92972697]
[1747214574164,5.60569538,178.39,178.35,13.92972697]
[1747214574661,5.60569538,178.39,178.33,26.0]
[1747214574862,5.60569538,178.39,178.35,13.92972697]
[1747214575757,5.60541114,178.4,178.38,13.92972697]
[1747214576258,51.84126795,178.43,178.38,13.92972697]
[1747214576458,5.60475283,178.42,178.38,13.92972697]
[1747214577063,29.5044985,178.43,178.39,13.92972697]
[1747214577266,29.5044985,178.43,178.36,26.0]
[1747214577449,29.5044985,178.43,178.39,13.92972697]
[1747214578963,29.5044985,178.43,178.36,5.6063786]
[1747214579139,29.5044985,178.43,178.42,13.92972697]
[1747214579859,23.9,178.43,178.42,13.92972697]
[1747214580434,23.68,178.49,178.46,26.0]
[1747214580762,10.0,178.62,178.46,26.0]
[1747214580763,23.68,178.54,178.48,13.92972697]
[1747214581068,23.68,178.54,178.53,13.92972697]
[1747214581755,29.28098577,178.54,178.53,13.92972697]
[1747214582064,23.68,178.54,178.53,13.92972697]
[1747214582834,47.3,178.6,178.54,18.64964886]
[1747214583035,29.27910414,178.6,178.59,13.92972697]
[1747214583963,29.27910414,178.6,178.51,5.88624867]
[1747214583964,29.27910414,178.6,178.54,26.0]
[1747214584171,29.27910414,178.6,178.59,13.92972697]
[1747214586860,23.68,178.6,178.59,13.92972697]
[1747214588475,29.27910414,178.6,178.59,13.92972697]
[1747214588857,43.20883111,178.6,178.53,1.5662]
[1747214589058,13.92972697,178.57,178.52,13.92972697]
[1747214589363,13.92972697,178.56,178.51,13.92972697]
[1747214589561,13.92972697,178.57,178.52,13.92972697]
[1747214589768,13.92972697,178.55,178.51,13.92972697]
[1747214590106,19.59796181,178.59,178.51,13.92972697]
[1747214590769,13.92972697,178.56,178.51,13.92972697]
[1747214591674,13.92972697,178.57,178.52,13.92972697]
[1747214591869,13.92972697,178.54,178.49,26.0]
[1747214592058,19.59905924,178.58,178.49,39.92972697]
[1747214592376,13.92972697,178.55,178.5,13.92972697]
[1747214592879,47.5977153,178.58,178.51,13.92972697]
[1747214593068,13.92972697,178.57,178.52,13.92972697]
[1747214593473,13.92972697,178.56,178.51,13.92972697]
[1747214593869,5.60067208,178.55,178.49,26.0]
[1747214594076,5.60067208,178.55,178.52,13.92972697]
[1747214594484,5.60067208,178.55,178.53,13.92972697]
[1747214595266,5.60067208,178.55,178.54,13.92972697]
[1747214595489,5.60037328,178.56,178.54,13.92972697]
[1747214595662,23.66,178.57,178.55,13.92972697]
[1747214595868,23.66,178.57,178.56,13.92972697]
[1747214596678,23.66,178.64,178.58,1.571]
[1747214596879,23.66,178.64,178.61,13.92972697]
[1747214597168,23.66,178.64,178.62,13.92972697]
[1747214597811,13.92972697,178.63,178.57,13.92972697]
[1747214598107,33.52439721,178.62,178.58,13.92972697]
[1747214598669,5.59847721,178.62,178.56,26.0]
[1747214598874,32.78929721,178.62,178.57,13.92972697]
[1747214599074,32.78929721,178.62,178.52,18.933972]
[1747214599075,13.92972697,178.58,178.52,13.92972697]
[1747214599271,13.92972697,178.55,178.49,1.6087]
[1747214599476,13.92972697,178.53,178.49,1.6087]
[1747214599896,13.92972697,178.53,178.46,6.038]
[1747214599897,5.60192706,178.51,178.48,13.92972697]
[1747214600074,5.60192706,178.51,178.47,13.92972697]
[1747214600271,5.60192706,178.51,178.44,15.48882697]
[1747214600272,13.92972697,178.49,178.44,15.48882697]
[1747214600475,13.92972697,178.45,178.4,13.92972697]
[1747214600689,13.92972697,178.42,178.36,6.6492]
[1747214600891,23.66,178.42,178.39,13.92972697]
[1747214601103,53.64418002,178.51,178.41,13.92972697]
[1747214601104,51.63454471,178.51,178.41,13.92972697]
[1747214601396,51.63454471,178.51,178.36,12.25565931]
[1747214601397,20.57834841,178.45,178.36,6.6492]
[1747214601703,20.57834841,178.46,178.41,20.57834841]
[1747214602015,5.60443871,178.43,178.39,46.57834841]
[1747214602517,5.60443871,178.43,178.31,6.1882]
[1747214602518,20.57834841,178.41,178.31,6.1882]
[1747214602676,20.57834841,178.39,178.31,6.1882]
[1747214603012,5.604172,178.44,178.38,20.57834841]
[1747214603184,23.46,178.42,178.41,20.57834841]
[1747214603498,73.12206895,178.46,178.41,20.57834841]
[1747214603812,52.54351488,178.46,178.42,20.57834841]
[1747214604102,20.57834841,178.43,178.33,1.5294]
[1747214604398,73.12186329,178.46,178.41,20.57834841]
[1747214604775,5.60265067,178.49,178.43,20.57834841]
[1747214604979,23.46,178.48,178.44,20.57834841]
[1747214605278,23.46,178.48,178.42,18.933972]
[1747214605485,20.57834841,178.47,178.4,0.14216157]
[1747214605685,20.57834841,178.44,178.39,20.57834841]
[1747214605872,20.57834841,178.43,178.38,20.57834841]
[1747214606074,23.46,178.48,178.35,18.64964886]
[1747214606075,20.57834841,178.44,178.36,5.60663825]
[1747214606277,5.6031826,178.47,178.38,20.57834841]
[1747214606588,20.57834841,178.4,178.35,20.57834841]
[1747214606795,20.57834841,178.39,178.34,20.57834841]
[1747214606993,20.57834841,178.36,178.31,20.57834841]
[1747214607173,20.57834841,178.37,178.32,20.57834841]
[1747214607375,20.57834841,178.38,178.29,0.28432314]
[1747214607575,23.48,178.4,178.31,46.57834841]
[1747214607782,5.6012995,178.53,178.39,46.57834841]
[1747214608005,23.48,178.5,178.42,26.0]
[1747214608197,23.48,178.5,178.49,20.57834841]
[1747214608506,23.48,178.5,178.48,20.57834841]
[1747214608696,23.48,178.5,178.45,0.14216157]
[1747214608896,44.05834841,178.5,178.43,5.60443871]
[1747214609103,20.57834841,178.48,178.43,20.57834841]
[1747214609289,20.57834841,178.49,178.44,20.57834841]
[1747214609489,20.57834841,178.47,178.4,0.14216157]
[1747214609678,20.57834841,178.49,178.43,20.57834841]
[1747214609875,29.08235366,178.5,178.41,0.14216157]
[1747214609876,44.05834841,178.5,178.45,20.57834841]
[1747214610305,49.66068983,178.5,178.45,20.57834841]
[1747214610815,23.48,178.5,178.46,20.57834841]
[1747214611501,23.48,178.5,178.49,20.57834841]
[1747214612309,23.48,178.5,178.49,26.18090317]
[1747214612511,23.48,178.5,178.49,26.46522631]
[1747214612691,23.48,178.5,178.49,20.57834841]
[1747214612901,233.24,178.56,178.52,26.0]
[1747214613198,233.24,178.56,178.55,20.57834841]
[1747214614090,233.24,178.56,178.54,20.57834841]
[1747214614283,238.84051325,178.56,178.5,1.71246157]
[1747214614497,238.84051325,178.56,178.53,20.57834841]
[1747214615412,238.84051325,178.56,178.5,27.71246157]
[1747214615595,238.84051325,178.56,178.53,20.57834841]
[1747214615782,233.24,178.56,178.53,20.57834841]
[1747214615984,238.84056999,178.56,178.54,20.57834841]
[1747214616203,238.84056999,178.56,178.53,20.57834841]
[1747214616480,238.84056999,178.56,178.5,27.71246157]
[1747214616688,238.84056999,178.56,178.52,20.57834841]
[1747214616882,238.84056999,178.56,178.54,20.57834841]
[1747214617109,233.24,178.56,178.54,20.57834841]
[1747214617999,238.84061661,178.56,178.54,20.57834841]
[1747214618198,238.84061661,178.56,178.55,20.57834841]
[1747214618517,23.48,178.56,178.55,20.57834841]
[1747214619311,29.08035842,178.56,178.55,20.57834841]
[1747214620898,29.08035842,178.56,178.53,0.14216157]
[1747214620899,29.08035842,178.56,178.53,20.57834841]
[1747214621094,29.08035842,178.56,178.5,27.5703]
[1747214621415,29.08035842,178.56,178.52,20.57834841]
[1747214621612,63.65960288,178.56,178.51,20.57834841]
[1747214622116,29.08035842,178.56,178.52,20.57834841]
[1747214622797,43.08125447,178.56,178.52,20.57834841]
[1747214622999,63.65960288,178.56,178.51,20.57834841]
[1747214623419,56.99867733,178.56,178.51,13.91742286]
[1747214623886,13.91742286,178.55,178.5,13.91742286]
[1747214624086,43.08125447,178.56,178.49,26.0]
[1747214624087,13.91742286,178.54,178.49,39.91742286]
[1747214624306,13.91742286,178.54,178.49,13.91742286]
[1747214624486,13.91742286,178.53,178.48,13.91742286]
[1747214624693,13.91742286,178.54,178.49,13.91742286]
[1747214624888,13.91742286,178.54,178.48,13.91742286]
[1747214625086,13.91742286,178.52,178.47,39.91742286]
[1747214626198,33.52197111,178.53,178.48,13.91742286]
[1747214626504,5.6012995,178.53,178.5,13.91742286]
[1747214626815,5.6012995,178.53,178.49,13.91742286]
[1747214627217,5.60098577,178.54,178.5,13.91742286]
[1747214627589,5.60098577,178.54,178.48,0.28432314]
[1747214627819,5.60098577,178.54,178.51,13.91742286]
[1747214629121,5.60067208,178.55,178.51,13.91742286]
[1747214629823,19.60235228,178.55,178.51,13.91742286]
[1747214630724,33.51977514,178.55,178.5,13.91742286]
[1747214631225,13.91742286,178.53,178.46,0.14216157]
[1747214631424,13.91742286,178.53,178.48,13.91742286]
[1747214632125,13.91742286,178.54,178.49,13.91742286]
[1747214633229,33.52306928,178.52,178.47,39.91742286]
[1747214633916,33.52306928,178.52,178.45,1.523]
[1747214634122,13.91742286,178.49,178.44,13.91742286]
[1747214634311,13.91742286,178.49,178.4,1.5813]
[1747214634312,13.91742286,178.48,178.43,13.91742286]
[1747214634513,13.91742286,178.46,178.42,26.0]
[1747214634734,13.91742286,178.44,178.4,1.5813]
[1747214634933,13.91742286,178.42,178.35,7.7831]
[1747214635236,19.5234325,178.38,178.33,13.91742286]
[1747214635428,33.5384566,178.38,178.33,13.91742286]
[1747214635809,13.91742286,178.37,178.32,13.91742286]
[1747214636020,13.91742286,178.37,178.33,26.0]
[1747214636311,13.91742286,178.37,178.32,13.91742286]
[1747214636634,19.62103374,178.38,178.32,13.91742286]
[1747214636843,19.62103374,178.38,176.66,841.16439676]
[1747214636844,13.91742286,178.35,178.25,6.1022]
[1747214637140,13.91742286,178.35,178.28,13.91742286]
[1747214637141,19.52500431,178.33,178.28,13.91742286]
[1747214637435,13.91742286,178.32,178.27,13.91742286]
[1747214639119,5.60821042,178.31,178.25,26.0]
[1747214639318,19.52563328,178.31,178.26,13.91742286]
[1747214639524,13.91742286,178.3,178.26,13.91742286]
[1747214640117,13.91742286,178.3,178.25,13.91742286]
[1747214640341,5.60788261,178.33,178.29,13.91742286]
[1747214640551,28.90729915,178.34,178.3,13.91742286]
[1747214640845,23.3,178.34,178.32,13.91742286]
[1747214641145,23.3,178.34,178.31,13.91742286]
[1747214641146,28.90741457,178.34,178.31,13.91742286]
[1747214642438,28.90741457,178.34,178.33,13.91742286]
[1747214642439,23.3,178.34,178.33,13.91742286]
[1747214645645,28.90726701,178.34,178.33,13.91742286]
[1747214645819,23.3,178.34,178.33,13.91742286]
[1747214646643,28.90726701,178.34,178.33,13.91742286]
[1747214646852,28.90726701,178.34,178.25,37.28487313]
[1747214646853,42.82468987,178.34,178.23,7.6888]
[1747214647149,13.91742286,178.33,178.28,13.91742286]
[1747214647448,28.90726701,178.34,178.3,13.91742286]
[1747214647745,23.3,178.34,178.31,13.91742286]
[1747214647922,215.34603849,178.38,178.33,13.91742286]
[1747214648242,23.32,178.37,178.35,13.91742286]
[1747214649450,28.92663779,178.37,178.32,26.0]
[1747214649622,28.92663779,178.37,178.34,13.91742286]
[1747214650239,23.32,178.37,178.36,13.91742286]
[1747214650434,28.92632393,178.37,178.36,13.91742286]
[1747214650752,28.92632393,178.37,178.35,13.91742286]
[1747214650939,28.92632393,178.37,178.34,13.91742286]
[1747214651249,23.32,178.37,178.36,13.91742286]
[1747214651469,23.32,178.37,178.29,38.46011528]
[1747214651470,28.92632393,178.37,178.3,26.0]
[1747214651623,28.92632393,178.37,178.33,13.91742286]
[1747214652450,23.32,178.37,178.36,13.91742286]
[1747214653444,23.32,178.37,178.36,19.52406111]
[1747214653617,23.32,178.37,178.36,13.91742286]
[1747214653823,23.32,178.37,178.36,19.80838425]
[1747214654037,23.32,178.43,178.37,0.28432314]
[1747214654223,23.32,178.43,178.4,13.91742286]
[1747214654831,23.32,178.43,178.36,39.91742286]
[1747214654832,13.91742286,178.41,178.36,39.91742286]
[1747214655430,5.60600964,178.38,178.34,13.91742286]
[1747214657032,5.60562787,178.4,178.37,13.91742286]
[1747214657232,5.60513281,178.41,178.38,13.91742286]
[1747214657441,5.60475283,178.42,178.38,13.91742286]
[1747214658654,13.91742286,178.41,178.34,26.14216157]
[1747214658952,13.91742286,178.41,178.36,13.91742286]
[1747214659530,5.60538116,178.4,178.36,13.91742286]
[1747214662359,13.91742286,178.38,178.32,15.57982286]
[1747214662534,13.91742286,178.38,178.32,41.57982286]
[1747214663157,33.53625693,178.4,178.35,13.91742286]
[1747214663355,5.60538116,178.4,178.37,13.91742286]
[1747214663557,19.52247487,178.42,178.37,13.91742286]
[1747214664335,5.60505201,178.42,178.38,13.91742286]
[1747214665181,23.14,178.41,178.4,13.91742286]
[1747214666442,23.14,178.41,178.36,31.89087215]
[1747214666762,23.14,178.41,178.4,13.91742286]
[1747214668043,23.14,178.41,178.39,31.60563231]
[1747214668459,23.14,178.41,178.4,13.91742286]
[1747214668761,23.14,178.41,178.4,32.85139486]
[1747214668937,23.14,178.47,178.42,0.28432314]
[1747214669141,23.14,178.47,178.46,13.91742286]
[1747214670362,23.14,178.47,178.46,39.91742286]
[1747214672250,23.14,178.47,178.46,45.80524258]
[1747214672454,5.60169693,178.52,178.49,26.0]
[1747214672658,5.60169693,178.52,178.51,13.91742286]
[1747214672850,23.12,178.53,178.51,13.91742286]
[1747214673056,28.7212995,178.53,178.52,13.91742286]
[1747214673250,23.12,178.53,178.52,13.91742286]
[1747214676052,23.12,178.53,178.52,14.201746]
[1747214677376,28.72138635,178.53,178.5,0.28432314]
[1747214677670,23.12,178.53,178.52,13.91742286]
[1747214678988,28.7212995,178.53,178.52,13.91742286]
[1747214679797,28.7212995,178.53,178.49,50.79844886]
[1747214679798,28.7212995,178.53,178.46,0.14216157]
[1747214680281,28.7212995,178.53,178.49,13.91742286]
[1747214680460,28.7212995,178.53,178.5,0.14216157]
[1747214680664,23.12,178.56,178.52,13.91742286]
[1747214680871,23.12,178.56,178.55,13.91742286]
[1747214683948,23.12,178.56,178.55,14.201746]
[1747214684155,23.12,178.56,178.55,38.45206694]
[1747214684369,209.84,178.6,178.56,0.28432314]
[1747214684582,209.84,178.6,178.59,13.91742286]
[1747214684764,23.12,178.62,178.59,13.91742286]
[1747214684960,23.12,178.62,178.61,13.91742286]
[1747214685765,23.12,178.62,178.61,14.201746]
[1747214686880,26.0,178.67,178.62,0.28432314]
[1747214687094,26.0,178.65,178.62,0.28432314]
[1747214687265,31.59755197,178.65,178.62,0.28432314]
[1747214688283,31.59755197,178.65,178.64,13.91742286]
[1747214688487,31.59755197,178.65,178.61,0.28432314]
[1747214688662,31.59755197,178.65,178.63,13.91742286]
[1747214690464,31.59755197,178.65,178.62,13.91742286]
[1747214690663,5.59755197,178.65,178.62,13.91742286]
[1747214691291,5.59722377,178.66,178.62,13.91742286]
[1747214692162,5.59722377,178.66,178.63,13.91742286]
[1747214692358,5.59722377,178.66,178.64,13.91742286]
[1747214692557,5.59722377,178.66,178.63,13.91742286]
[1747214693086,5.59722377,178.66,178.62,13.91742286]
[1747214694087,19.59028321,178.66,178.62,13.91742286]
[1747214694766,13.91742286,178.65,178.6,13.91742286]
[1747214695579,19.59247648,178.64,178.6,13.91742286]
[1747214698788,5.59785042,178.64,178.61,13.91742286]
[1747214698959,5.59785042,178.64,178.62,13.91742286]
[1747214699576,19.59028321,178.66,178.62,13.91742286]
[1747214699783,13.91742286,178.64,178.59,39.91742286]
[1747214700063,13.91742286,178.65,178.6,13.91742286]
[1747214700757,19.59028321,178.66,178.6,13.91742286]
[1747214700958,13.91742286,178.65,178.6,13.91742286]
[1747214701162,19.59028321,178.66,178.6,13.91742286]
[1747214701363,19.59028321,178.66,178.61,13.91742286]
[1747214701606,5.59722377,178.66,178.61,13.91742286]
[1747214701773,5.59560516,178.72,178.68,26.0]
[1747214701964,28.51507325,178.73,178.71,13.91742286]
[1747214702167,22.92,178.73,178.72,13.91742286]
[1747214702674,22.92,178.79,178.73,18.933972]
[1747214702888,22.92,178.79,178.76,13.91742286]
[1747214703084,22.92,178.79,178.78,13.91742286]
[1747214703893,5.59230643,178.82,178.78,13.91742286]
[1747214704106,238.1119568,178.83,178.81,13.91742286]
[1747214704271,238.1119568,178.83,178.82,13.91742286]
[1747214704590,238.1119568,178.83,178.77,0.28432314]
[1747214704591,232.52,178.83,178.77,0.28432314]
[1747214704787,13.91742286,178.82,178.76,14.201746]
[1747214705097,266.00908309,178.83,178.78,13.91742286]
[1747214705281,252.09166023,178.83,178.79,13.91742286]
[1747214705788,238.11190292,178.83,178.81,13.91742286]
[1747214706165,13.91742286,178.82,178.76,13.91742286]
[1747214706371,252.09166023,178.83,178.76,13.91742286]
[1747214706579,13.91742286,178.82,178.76,13.91742286]
[1747214706886,13.91742286,178.82,178.77,13.91742286]
[1747214707087,13.91742286,178.81,178.75,1.5284]
[1747214707289,13.91742286,178.81,178.76,13.91742286]
[1747214707510,13.91742286,178.82,178.77,13.91742286]
[1747214707817,13.91742286,178.78,178.71,1.5131]
[1747214707983,13.91742286,178.78,178.73,13.91742286]
[1747214708184,13.91742286,178.79,178.74,13.91742286]
[1747214708400,13.91742286,178.8,178.75,13.91742286]
[1747214708897,33.49127219,178.81,178.75,13.91742286]
[1747214709277,19.57384933,178.81,178.75,13.91742286]
[1747214709473,33.49127219,178.81,178.75,13.91742286]
[1747214709677,33.49346177,178.79,178.73,26.0]
[1747214709893,13.91742286,178.78,178.73,39.91742286]
[1747214710289,33.49346177,178.79,178.74,13.91742286]
[1747214710494,19.57603891,178.79,178.75,13.91742286]
[1747214710881,19.57603891,178.79,178.73,26.0]
[1747214710882,5.59315397,178.79,178.76,13.91742286]
[1747214711403,5.59315397,178.79,178.75,13.91742286]
[1747214711612,19.57603891,178.79,178.73,26.0]
[1747214711910,33.49346177,178.79,178.71,1.5131]
[1747214712097,13.91742286,178.78,178.73,13.91742286]
[1747214712285,13.91742286,178.78,178.72,13.91742286]
[1747214712799,13.91742286,178.78,178.73,13.91742286]
[1747214713380,33.49346177,178.79,178.74,13.91742286]
[1747214713575,5.59315397,178.79,178.75,13.91742286]
[1747214713781,13.91742286,178.8,178.76,13.91742286]
[1747214713782,5.59284116,178.8,178.76,13.91742286]
[1747214714091,5.59284116,178.8,178.77,13.91742286]
[1747214714805,5.59284116,178.8,178.76,13.91742286]
[1747214716606,5.59284116,178.8,178.72,18.933972]
[1747214716802,5.59284116,178.8,178.76,13.91742286]
[1747214717112,13.91742286,178.78,178.73,13.91742286]
[1747214717606,13.91742286,178.78,178.71,1.5131]
[1747214717790,13.91742286,178.78,178.73,13.91742286]
[1747214718305,13.91742286,178.79,178.74,13.91742286]
[1747214718496,33.49236692,178.8,178.71,1.5131]
[1747214718805,19.57494406,178.8,178.74,13.91742286]
[1747214719006,33.49236692,178.8,178.72,0.28432314]
[1747214719212,33.49236692,178.8,178.75,13.91742286]
[1747214719585,13.91742286,178.79,178.73,13.91742286]
[1747214720107,19.57494406,178.8,178.75,13.91742286]
[1747214720108,33.49236692,178.8,178.75,13.91742286]
[1747214720303,19.57494406,178.8,178.76,13.91742286]
[1747214720505,36.67742286,178.82,178.78,13.91742286]
[1747214720506,5.59252838,178.81,178.78,13.91742286]
[1747214720691,5.59252838,178.81,178.8,13.91742286]
[1747214721208,19.57384933,178.81,178.74,0.14216157]
[1747214721390,19.57384933,178.81,178.78,13.91742286]
[1747214722295,33.49127219,178.81,178.72,18.79181043]
[1747214722496,232.52,178.83,178.75,13.91742286]
[1747214722497,19.57603891,178.79,178.75,13.91742286]
[1747214722697,33.49346177,178.79,178.74,13.91742286]
[1747214723301,19.57603891,178.79,178.76,13.91742286]
[1747214723823,19.57603891,178.79,178.74,13.91742286]
[1747214724214,19.57603891,178.79,178.75,13.91742286]
[1747214724609,19.57603891,178.79,178.71,1.5131]
[1747214724791,5.59315397,178.79,178.71,1.5131]
[1747214724997,5.59315397,178.79,178.77,13.91742286]
[1747214725521,28.31315397,178.79,178.77,13.91742286]
[1747214726502,28.31315397,178.79,178.76,13.91742286]
[1747214726719,42.29603891,178.79,178.75,13.91742286]
[1747214726924,56.21346177,178.79,178.71,1.5131]
[1747214727126,56.21346177,178.79,178.74,13.91742286]
[1747214727720,13.91742286,178.78,178.73,13.91742286]
[1747214728090,5.59377971,178.77,178.73,13.91742286]
[1747214728295,5.59377971,178.77,178.75,13.91742286]
[1747214728513,5.59377971,178.77,178.74,13.91742286]
[1747214728694,5.59377971,178.77,178.76,13.91742286]
[1747214728897,5.59377971,178.77,178.75,13.91742286]
[1747214729105,5.59377971,178.77,178.76,13.91742286]
[1747214729615,5.59377971,178.77,178.71,1.5131]
[1747214729815,5.59377971,178.77,178.74,13.91742286]
[1747214730016,5.59377971,178.77,178.75,13.91742286]
[1747214730438,5.59346683,178.78,178.71,1.5131]
[1747214730739,5.59346683,178.78,178.75,13.91742286]
[1747214731103,5.59346683,178.78,178.76,13.91742286]
[1747214732113,5.59346683,178.78,178.75,13.91742286]
[1747214732316,5.59346683,178.78,178.74,13.91742286]
[1747214732516,5.59346683,178.78,178.71,1.5131]
[1747214732517,28.31323298,178.79,178.77,13.91742286]
[1747214732696,28.31323298,178.79,178.78,13.91742286]
[1747214732901,28.31323298,178.79,178.72,18.933972]
[1747214733128,28.31323298,178.79,178.78,13.91742286]
[1747214734024,28.31315397,178.79,178.78,13.91742286]
[1747214735204,28.31315397,178.79,178.77,13.91742286]
[1747214735409,28.31315397,178.79,178.77,8.67281574]
[1747214736017,28.31315397,178.79,178.78,8.67281574]
[1747214736206,22.72,178.79,178.78,8.67281574]
[1747214740606,28.31315397,178.79,178.74,8.67281574]
[1747214740808,28.31315397,178.79,178.77,8.67281574]
[1747214741537,28.31315397,178.79,178.76,18.64964886]
[1747214742445,28.31315397,178.79,178.76,27.3224646]
[1747214742618,28.31315397,178.79,178.76,8.67281574]
[1747214742818,28.31315397,178.79,178.77,8.67281574]
[1747214745122,22.72,178.79,178.78,8.67281574]
[1747214745548,36.98596971,178.79,178.75,18.64964886]
[1747214745841,8.67281574,178.78,178.75,18.64964886]
[1747214746150,5.59377971,178.77,178.74,18.64964886]
[1747214746340,14.26659545,178.77,178.72,27.3224646]
[1747214746929,5.59377971,178.77,178.74,18.64964886]
[1747214747453,5.59377971,178.77,178.74,8.67281574]
[1747214750031,5.59346683,178.78,178.74,8.67281574]
[1747214750554,5.59346683,178.78,178.72,18.64964886]
[1747214751051,5.59346683,178.78,178.74,8.67281574]
[1747214752347,5.59346683,178.78,178.72,18.64964886]
[1747214752348,28.3132124,178.79,178.73,0.28432314]
[1747214752538,28.3132124,178.79,178.77,8.67281574]
[1747214753030,22.72,178.79,178.77,8.67281574]
[1747214753955,8.67281574,178.78,178.67,1.5254]
[1747214754249,5.59503161,178.73,178.69,8.67281574]